Cogmind - Beta 13 @@@ ROGUE MODE // 2024.04.03 @ 02:30:19 Player: lazy_engineer Result: Destroyed by G-47 Trooper with Particle Gun Performance ------------- Evolutions (2) 1000 Regions Visited (7) 1400 Robots Destroyed (94) 470 Value Destroyed (2984) 2984 Prototype IDs (28) 560 Alien Tech Used (0) 0 Bonus (1036) 1036 TOTAL SCORE: 7450 Bonus ------- High Alert Combat Kills 483 Follower Combat Kills 53 Entered Garrisons 200 Aligned with FarCom 300 Cogmind --------- Core Integrity 0/550 Matter 300/300 Energy 150/150 System Corruption 0% Temperature Cool (9) Movement Core (900) Ox17 Location -8/Garrison Parts ------- > --- POWER (1) -------- Micro Nuclear Core > --- PROPULSION (2) --- (None) > --- UTILITY (6) ------ High-capacity Storage Unit Improved Signal Interpreter Transmission Jammer Hacking Suite Hacking Suite Hacking Suite > --- WEAPON (2) ------- Remote Datajack Longsword +1 > --- INVENTORY (20) --- Micro Nuclear Core Improved Treads Improved Treads Improved Treads Advanced Treads Improved Heat Sink Small Storage Unit Improved Terrain Scanner Advanced Terrain Scan Processor Advanced Terrain Scan Processor Advanced Terrain Scan Processor Advanced Terrain Scan Processor Hardened Light Armor Plating Relay Coupler [NC] (37) Relay Coupler [NC] (41) Relay Coupler [NC] (40) Relay Coupler [NC] (36) Relay Coupler [Hunter] (19) Recalibrator Datajack Peak State ------------ > --- POWER ------------ Micro Nuclear Core > --- PROPULSION ------- Potential Leg Potential Leg > --- UTILITY ---------- High-capacity Storage Unit Improved Signal Interpreter Transmission Jammer Hacking Suite Hacking Suite Hacking Suite > --- WEAPON ----------- Plasma Cutter Longsword +1 > --- INVENTORY -------- Micro Nuclear Core Improved Treads Improved Treads Improved Treads Advanced Treads Improved Heat Sink Small Storage Unit Improved Terrain Scanner Advanced Terrain Scan Processor Advanced Terrain Scan Processor Advanced Terrain Scan Processor Advanced Terrain Scan Processor Hardened Light Armor Plating Relay Coupler [Sentry] Relay Coupler [Demolisher] Relay Coupler [Heavy] Recalibrator Datajack Datajack Mining Laser [Rating: 57] Favorites ----------- Power Light Ion Engine Engine Light Ion Engine Power Core Micro Nuclear Core Propulsion Improved Treads Treads Improved Treads Leg Potential Leg Wheel Compact Wheel Hover Unit Aerolev Unit Utility Hacking Suite Device Experimental Sensor Array Storage Huge Storage Unit Processor Improved Signal Interpreter Hackware Hacking Suite Protection Hardened Light Armor Plating Weapon Light Assault Rifle Energy Gun Medium Laser Ballistic Gun Light Assault Rifle Launcher Grenade Launcher Special Weapon Mining Laser Impact Weapon Hammer Slashing Weapon Longsword +1 Special Melee Weapon Datajack Build | -11 -10 -10 -10 -9 -8 -8 -8 ------- Run | Yrd Mat Min Exi Min Mat Sto Gar Slots Evolved 4 | . . . . . 4 . . Power . | . . . . . . . . Propulsion . | . . . . . . . . Utility 4 | . . . . . 4 . . Weapon . | . . . . . . . . Parts Attached 75 | 6 26 3 7 4 11 10 8 Power 7 | 1 1 . . . 1 2 2 Engine 2 | 1 1 . . . . . . Core 5 | . . . . . 1 2 2 Reactor . | . . . . . . . . Propulsion 13 | 2 5 . 2 1 . 2 1 Treads 6 | 1 5 . . . . . . Leg 5 | . . . 2 1 . 1 1 Wheel 1 | 1 . . . . . . . Hover 1 | . . . . . . 1 . Flight . | . . . . . . . . Utility 26 | 1 11 1 1 3 6 3 . Device 9 | . 4 1 . 1 1 2 . Storage 5 | 1 3 . 1 . . . . Processor 4 | . 2 . . 1 1 . . Hackware 4 | . . . . . 4 . . Protection 4 | . 2 . . 1 . 1 . Artifact . | . . . . . . . . Weapon 29 | 2 9 2 4 . 4 3 5 Energy Gun 5 | 2 2 . . . 1 . . Energy Cannon . | . . . . . . . . Ballistic Gun 7 | . 3 . . . 1 3 . Ballistic Cannon . | . . . . . . . . Launcher 5 | . 2 1 . . 2 . . Special Weapon 4 | . 1 . . . . . 3 Impact Weapon 3 | . 1 . 2 . . . . Slashing Weapon 1 | . . . 1 . . . . Piercing Weapon . | . . . . . . . . Special Melee Weapon 4 | . . 1 1 . . . 2 Unidentified Prototypes 3 | . . 1 . . 1 1 . Parts Lost 13 | . 3 . . 2 1 1 6 Power 3 | . 1 . . 1 . . 1 Propulsion 3 | . . . . . . . 3 Utility 2 | . . . . 1 . 1 . Weapon 5 | . 2 . . . 1 . 2 Highest Loss Streak 2 | . 1 . . 2 1 1 2 To Critical Strikes . | . . . . . . . . Average Slot Usage (%) 95 | . 90 99 99 97 97 97 98 Engine 6 | . 5 14 14 11 . . . Core 2 | . . . . . 7 8 8 Treads 13 | . 26 28 18 . . . . Leg 10 | . . . 9 27 18 18 17 Device 7 | . 7 3 14 13 . 1 9 Storage 12 | . 14 14 14 14 9 9 9 Processor 5 | . 4 9 . . 9 9 9 Hackware 9 | . . . . . 34 32 27 Energy Gun 3 | . 9 . . . . . . Ballistic Gun 10 | . 11 14 14 14 4 8 . Launcher 1 | . 1 12 . . 4 . . Special Weapon 2 | . 3 . . . . . 5 Slashing Weapon 5 | . . . 5 14 9 9 9 Naked Turns . | . . . . . . . . Heaviest Build 92 | 12 92 88 88 48 53 57 53 Greatest Support 60 | 16 46 46 60 60 60 60 60 Greatest Overweight (x) 4 | . 4 1 1 . . . 1 Average Overweight (x) . | . . 1 . . . . . Largest Inventory Capacity 25 | 8 25 25 25 20 20 20 20 Average Capacity 21 | 7 23 25 24 20 20 20 20 Most Carried 25 | 5 24 25 25 20 20 20 20 Average Carried 19 | 2 17 24 23 19 19 19 19 Final Capacity 25 | 8 25 25 20 20 20 20 20 Final Carried 24 | 5 24 24 20 19 19 20 20 Class Distribution -------------------- 56% | Mutant 31% | Hacker-Mutant 11% | Assassin Dominant Class ---------------- Mutant | -10/Materials Mutant | -10/Mines Mutant | -10/Exiles Assassin | -9/Mines Hacker-Mutant | -8/Materials Hacker-Mutant | -8/Storage Hacker-Mutant | -8/Garrison Resources | -11 -10 -10 -10 -9 -8 -8 -8 ----------- Run | Yrd Mat Min Exi Min Mat Sto Gar Matter Collected 1241 | 181 400 . . 212 138 235 75 Remotely . | . . . . . . . . Salvage Created 3229 | 107 912 3 . 141 220 1085 761 Parts 190 | 4 65 3 . 3 26 59 30 Haulers Intercepted 4 | . 2 . . . . 2 . Recyclers Shooed 4 | . 3 . . . 1 . . Parts Field Recycled . | . . . . . . . . Retrieved Matter . | . . . . . . . . Parts Self-Destructed . | . . . . . . . . Prevented . | . . . . . . . . Kills | -11 -10 -10 -10 -9 -8 -8 -8 ------- Run | Yrd Mat Min Exi Min Mat Sto Gar Combat Hostiles Destroyed 70 | . 18 3 . 1 12 21 15 Melee 35 | . . . . 1 . 19 15 Guns 19 | . 17 . . . . 2 . AOE 16 | . 1 3 . . 12 . . Classes Destroyed 14 | 2 7 . . 1 2 . 2 Worker 4 | . 1 . . . 2 1 . Builder 1 | . . . . . 1 . . Tunneler 1 | 1 . . . . . . . Hauler 4 | . 2 . . . . 2 . Recycler 5 | 1 3 . . 1 . . . Mechanic 2 | . 1 . . . . 1 . Operator 3 | . 3 . . . . . . Watcher 4 | . 1 . . . 1 2 . Swarmer 23 | . 6 3 . . 8 6 . Grunt 33 | . 12 . . . 3 8 10 Duelist 1 | . . . . 1 . . . Sentry 9 | . . . . . 1 7 1 Hunter 1 | . . . . . . . 1 Programmer 3 | . . . . . . . 3 Best Kill Streak 13 | 2 4 3 . 2 13 10 4 Combat Bots Only 9 | . 3 3 . 1 9 6 4 Max Kills in Single Turn 5 | 1 1 3 . 1 5 1 1 Gunslinging . | . . . . . . . . Exploded 4 | . 1 3 . . 4 . . Melee 1 | . . . . 1 . 1 1 Uniques/NPCs Destroyed . | . . . . . . . . Combat | -11 -10 -10 -10 -9 -8 -8 -8 -------- Run | Yrd Mat Min Exi Min Mat Sto Gar Hostile Shots Fired 299 | . 90 24 . 3 59 53 70 Missed 89 | . 20 13 . . 23 19 14 Damage Taken 3188 | . 881 84 . 101 604 422 1096 Core 735 | . 154 22 . . 142 83 334 Absorbed by Shields . | . . . . . . . . Regen/Repaired (Parts) 334 | . 132 . . . . 202 . Core Remaining (%) 64 | 100 . . . 29 . . . Volleys Fired 164 | 9 129 4 . . 13 8 1 Largest 2 | 2 2 1 . . 1 1 1 Hottest 120 | 100 120 30 . . 33 23 5 Shots Fired 244 | 18 200 4 . . 13 8 1 Gun 221 | 18 193 2 . . . 8 . Cannon . | . . . . . . . . Launcher 17 | . 2 2 . . 13 . . Special 6 | . 5 . . . . . 1 Kinetic 136 | . 126 2 . . . 8 . Thermal 90 | 18 72 . . . . . . Explosive 17 | . 2 2 . . 13 . . Electromagnetic . | . . . . . . . . Robot Hit Streak 11 | 4 11 . . . 2 3 1 Robot Miss Streak 5 | 3 5 5 . . 4 1 . Penetration Max . | . . . . . . . . Secondary Targets 3 | . 3 . . . . . . Max Gunslinging Chain 1 | . 1 . . . . . . Shots Hit Robots 237 | 12 121 1 . 5 7 48 43 Core Hits 135 | 3 58 4 . 2 27 28 13 Critical Kills . | . . . . . . . . Critical Parts Destroyed 1 | . 1 . . . . . . Critical Strikes 14 | . 3 . . 1 . 4 6 Burn 2 | . 2 . . . . . . Destroy 1 | . 1 . . . . . . Sever 11 | . . . . 1 . 4 6 Melee Attacks 117 | . . 1 . 5 1 51 59 Impact . | . . . . . . . . Slashing 112 | . . . . 5 1 51 55 Piercing . | . . . . . . . . Sneak Attacks 12 | . . 1 . 1 . 5 5 Combat Hostiles 7 | . . . . . . 2 5 Follow-up Attacks . | . . . . . . . . Damage Inflicted 7378 | 162 1484 157 . 231 1155 2277 1912 Guns 1404 | 162 1169 9 . . . 64 . Cannons . | . . . . . . . . Explosions 1545 | . 291 148 . . 1106 . . Melee 4405 | . . . . 231 49 2213 1912 Ramming . | . . . . . . . . Kinetic 730 | . 657 9 . . . 64 . Thermal 698 | 162 536 . . . . . . Explosive 1545 | . 291 148 . . 1106 . . Electromagnetic . | . . . . . . . . Impact . | . . . . . . . . Slashing 4405 | . . . . 231 49 2213 1912 Piercing . | . . . . . . . . Highest Corruption . | . . . . . . . . Average Corruption . | . . . . . . . . Corruption Purged . | . . . . . . . . Corruption Blocked . | . . . . . . . . Overload Shots . | . . . . . . . . Overflow Damage 506 | . 60 . . . 34 144 268 Projectiles 3 | . 3 . . . . . . Explosions 130 | . 57 . . . 34 . 39 Melee 373 | . . . . . . 144 229 Knockbacks . | . . . . . . . . Impact . | . . . . . . . . Kinetic . | . . . . . . . . Secondary . | . . . . . . . . Self-Inflicted Damage 265 | . 49 . . . 61 . 155 Shots 5 | . 2 . . . 2 . 1 Rammed . | . . . . . . . . Targets Rammed . | . . . . . . . . Kicked . | . . . . . . . . Crushed . | . . . . . . . . Highest Temperature 273 | 273 266 . . . 38 5 5 Average Temperature 60 | 119 51 . . . 10 3 4 Received Heat Transfer 1167 | . 384 . . . 243 153 387 Siege Activations . | . . . . . . . . Robots Corrupted . | . . . . . . . . Combat Hostiles . | . . . . . . . . Parts Fried . | . . . . . . . . Impact Corruptions . | . . . . . . . . Robots Melted . | . . . . . . . . Combat Hostiles . | . . . . . . . . Parts Melted 4 | . 4 . . . . . . Heat Transferred 2196 | 481 1715 . . . . . . Parts Sabotaged . | . . . . . . . . Parts Stolen . | . . . . . . . . Parts Stripped . | . . . . . . . . Power Chain Reactions . | . . . . . . . . Alert | -11 -10 -10 -10 -9 -8 -8 -8 ------- Run | Yrd Mat Min Exi Min Mat Sto Gar Peak Influence 1141 | 10 224 138 . 104 409 735 1141 Initial 479 | . 6 58 . . 24 168 479 Average 278 | 3 130 134 . 54 168 465 813 Maximum Alert Level 4 | . 1 . . . 2 3 4 Low Security (%) 65 | 100 87 100 . 100 66 17 . Level 1 7 | . 12 . . . 25 10 . Level 2 16 | . . . . . 7 69 38 Level 3 9 | . . . . . . 2 52 Level 4 1 | . . . . . . . 9 Level 5 . | . . . . . . . . High Security . | . . . . . . . . Max Security . | . . . . . . . . Squads Dispatched 12 | . 7 . . . 2 3 . Investigation 9 | . 5 . . . 1 3 . Extermination . | . . . . . . . . Reinforcement 3 | . 2 . . . 1 . . Assault . | . . . . . . . . Garrison . | . . . . . . . . Intercept . | . . . . . . . . Searches Triggered . | . . . . . . . . Construction Impeded . | . . . . . . . . Haulers Reinforced . | . . . . . . . . Active Scanning Responses . | . . . . . . . . Cargo Convoy Interrupts . | . . . . . . . . Stealth | -11 -10 -10 -10 -9 -8 -8 -8 --------- Run | Yrd Mat Min Exi Min Mat Sto Gar Distress Signals 6 | . 2 . . . 2 2 . Communications Jammed . | . . . . . . . . Distress Signals . | . . . . . . . . Times Spotted 118 | . 42 3 . 2 25 29 17 Peak Tracking Total 8 | . 5 3 . 2 8 7 3 Tactical Retreats 5 | . . . . . . 4 1 Traps | -11 -10 -10 -10 -9 -8 -8 -8 ------- Run | Yrd Mat Min Exi Min Mat Sto Gar Traps Triggered 6 | . 2 . . . . . 4 Indirectly . | . . . . . . . . Trap Hack Attempts . | . . . . . . . . Triggered . | . . . . . . . . Disarmed . | . . . . . . . . Reprogrammed 2 | . . . . . . 2 . Reused . | . . . . . . . . Traps Extracted . | . . . . . . . . Installed . | . . . . . . . . Triggered . | . . . . . . . . Machines | -11 -10 -10 -10 -9 -8 -8 -8 ---------- Run | Yrd Mat Min Exi Min Mat Sto Gar Machines Disabled 7 | . 2 . . . 2 . 3 Max in Single Turn 2 | . 2 . . . 1 . 2 Garrison Relay 2 | . . . . . . . 2 Phase Generator 1 | . . . . . . . 1 Machines Repaired . | . . . . . . . . Machines Dismantled 1 | . . . . . . . 1 Machines Sabotaged . | . . . . . . . . Overloaded Fab Kills . | . . . . . . . . Hacking | -11 -10 -10 -10 -9 -8 -8 -8 --------- Run | Yrd Mat Min Exi Min Mat Sto Gar Machines Accessed 18 | . 7 . 1 . 1 6 3 Terminals 10 | . 4 . . . 1 2 3 Fabricators . | . . . . . . . . Repair Stations 3 | . 1 . . . . 2 . Recycling Units 3 | . 2 . . . . 1 . Scanalyzers . | . . . . . . . . Garrison Access 1 | . . . . . . 1 . Total Hacks 79 | . 30 . 1 . 4 33 11 Successful 52 | . 17 . 1 . 3 27 4 Failed 27 | . 13 . . . 1 6 7 Catastrophic 2 | . 1 . . . . . 1 Database Lockouts . | . . . . . . . . Manual 32 | . 11 . 1 . . 11 9 Terminals 48 | . 16 . . . 4 17 11 Fabricators . | . . . . . . . . Repair Stations 16 | . 6 . . . . 10 . Recycling Units 12 | . 8 . . . . 4 . Scanalyzers . | . . . . . . . . Garrison Access 2 | . . . . . . 2 . Terminal Hacks 21 | . 6 . 1 . 3 7 4 Robot Analysis 1 | . 1 . . . . . . Prototype ID Bank 1 | . . . . . . 1 . Emergency Access Points 1 | . . . . . . . 1 Terminal Index 1 | . . . . . . 1 . Locate Traps 3 | . 1 . . . . 1 1 Reprogram Traps 2 | . . . . . . 2 . Transport Status 2 | . 1 . . . 1 . . Hauler Manifests 2 | . 1 . . . 1 . . Zone Layout 6 | . 2 . . . 1 2 1 Security Stations 1 | . . . . . . . 1 Derelict Proto ID Bank 1 | . . . 1 . . . . Fabricator Hacks . | . . . . . . . . Repair Station Hacks 15 | . 5 . . . . 10 . Scan Component 8 | . 3 . . . . 5 . Repair 7 | . 2 . . . . 5 . Recycling Unit Hacks 5 | . 3 . . . . 2 . Report Inventory 3 | . 2 . . . . 1 . Retrieve Components 2 | . 1 . . . . 1 . Scanalyzer . | . . . . . . . . Garrison Access Hacks 2 | . . . . . . 2 . Unlock Access 1 | . . . . . . 1 . Coupler Status 1 | . . . . . . 1 . Unauthorized Hacks 9 | . 3 . . . . 6 . Terminals 7 | . 2 . . . . 5 . Track 2 | . 1 . . . . 1 . Assimilate 1 | . . . . . . 1 . Botnet 1 | . . . . . . 1 . Operators 3 | . 1 . . . . 2 . Fabricators . | . . . . . . . . Repair Stations . | . . . . . . . . Recycling Units 2 | . 1 . . . . 1 . Tunnel 2 | . 1 . . . . 1 . Scanalyzers . | . . . . . . . . Garrison Access . | . . . . . . . . Data Cores Recovered 1 | . . . . . 1 . . Used 1 | . . . . . 1 . . Hacking Detections 16 | . 6 . . . 1 6 3 Full Trace Events 11 | . 5 . . . 1 3 2 Feedback Events . | . . . . . . . . Feedback Blocked . | . . . . . . . . Robot Schematics Acquired . | . . . . . . . . Robots Built . | . . . . . . . . Authchips . | . . . . . . . . Time . | . . . . . . . . Total Robot Build Rating . | . . . . . . . . Part Schematics Acquired . | . . . . . . . . Parts Built . | . . . . . . . . Authchips . | . . . . . . . . Time . | . . . . . . . . Total Part Build Rating . | . . . . . . . . Parts Repaired 7 | . 2 . . . . 5 . Time 248 | . 58 . . . . 190 . Parts Recycled . | . . . . . . . . Recycled Matter . | . . . . . . . . Retrieved Matter . | . . . . . . . . Retrieved Components 13 | . 10 . . . . 3 . Parts Scanalyzed . | . . . . . . . . Part Schematics Acquired . | . . . . . . . . Parts Damaged . | . . . . . . . . Bothacking | -11 -10 -10 -10 -9 -8 -8 -8 ------------ Run | Yrd Mat Min Exi Min Mat Sto Gar Used RIF Installer . | . . . . . . . . Robots Hacked 2 | . . 1 . . . . 1 Non-combat 1 | . . 1 . . . . . Combat 1 | . . . . . . . 1 Robot Hacks Applied 2 | . . 1 . . . . 1 parse_system 1 | . . . . . . . 1 no_distress 1 | . . 1 . . . . . Relay Couplers Released 9 | . . . . . . . 9 Machine Destruction 9 | . . . . . . . 9 Fabnet Peak Effective % . | . . . . . . . . Robots Rewired . | . . . . . . . . Allies Hacked . | . . . . . . . . Hacks Repelled . | . . . . . . . . Allies | -11 -10 -10 -10 -9 -8 -8 -8 -------- Run | Yrd Mat Min Exi Min Mat Sto Gar Total Allies 3 | . . . . 3 . . . Largest Group 3 | . . . . 3 3 . . Highest-Rated Group 40 | . . . . 40 40 . . Highest-Rated Ally 16 | . . . . 16 16 . . Total Orders . | . . . . . . . . Ally Attacks 24 | . . . . 15 9 . . Total Damage 180 | . . . . 96 84 . . Kills 7 | . . . . 5 2 . . Allies Corrupted . | . . . . . . . . Allies Melted . | . . . . . . . . Intel | -11 -10 -10 -10 -9 -8 -8 -8 ------- Run | Yrd Mat Min Exi Min Mat Sto Gar Robot Analysis Total 1 | . 1 . . . . . . Derelict Logs Recovered 2 | . . 1 . 1 . . . Drone Launches . | . . . . . . . . Drone Recoveries . | . . . . . . . . Exploration | -11 -10 -10 -10 -9 -8 -8 -8 ------------- Run | Yrd Mat Min Exi Min Mat Sto Gar Turns Passed 5396 | 95 2017 361 509 754 164 677 819 Spaces Moved 2754 | 57 700 143 243 750 123 272 466 Core 11 | 10 1 . . . . . . Treads 850 | . 574 143 133 . . . . Legs 1721 | . . . 110 750 123 272 466 Wheels 172 | 47 125 . . . . . . Hover . | . . . . . . . . Flight . | . . . . . . . . Fastest Speed 50 | 50 100 240 90 90 90 90 90 Average Speed 144 | 91 214 240 199 90 90 90 120 Slowest Speed 250 | 100 250 240 240 90 90 90 180 Overloaded Moves . | . . . . . . . . Propulsion Burnouts . | . . . . . . . . Robots Hopped . | . . . . . . . . Cave-ins Triggered . | . . . . . . . . Exploration Rate (%) 50 | 4 89 44 60 101 13 34 57 Regions Visited 7 Branch Regions 4 Pre-discovered Areas 3 | . 1 . . 1 . 1 . Known Exits Taken 3 | . . . . 1 1 1 . Unknown Exits Taken 4 | 1 1 1 1 . . . . Scrap Searched 1 | . . . . 1 . . . Spaces Dug 15 | . 11 . . . . . 4 Terrain Destroyed 185 | . 30 11 . . 70 . 74 Melee 4 | . . . . . . . 4 Projectile 1 | . 1 . . . . . . AOE 180 | . 29 11 . . 70 . 70 Terrain Rammed . | . . . . . . . . Walls Destroyed . | . . . . . . . . Machines Disabled . | . . . . . . . . Actions | -11 -10 -10 -10 -9 -8 -8 -8 --------- Run | Yrd Mat Min Exi Min Mat Sto Gar Total 3822 | 82 1025 157 269 822 162 645 660 Wait 579 | . 129 5 . 62 3 287 93 Move 2748 | 56 699 142 242 749 122 272 466 Hop . | . . . . . . . . Pick Up 83 | 11 34 1 7 1 8 10 11 Fast Attach 7 | . . . . 1 2 4 . Attach 31 | 6 8 1 1 1 7 3 4 Detach . | . . . . . . . . Swap 37 | . 18 2 6 2 2 3 4 Drop 39 | . 8 1 10 1 4 7 8 Fire 164 | 9 129 4 . . 13 8 1 Melee 117 | . . 1 . 5 1 51 59 Ram . | . . . . . . . . Kick . | . . . . . . . . Crush . | . . . . . . . . Escape Stasis 10 | . . . . . . . 10 Rewire 3 | . . . 3 . . . . Trap . | . . . . . . . . Miscellaneous 4 | . . . . . . . 4 Route ------- -11/Scrapyard -10/Materials (discovered 6 exits: [*Mat x3] / [*Min x2] / [Sub]) -10/Mines -10/Exiles -9/Mines (discovered 2 exits: *Mat x2) -8/Materials -8/Storage -8/Garrison (discovered 1 exit: *Fac) History --------- Turn | Location | Event 14 | -11/Scrapyard | Discovered new exit (range 15) 96 | -11/Scrapyard | Entered Materials 303 | -10/Materials | Build established: Mutant 451 | -10/Materials | Discovered new exit (range 12) 677 | -10/Materials | Discovered new exit (range 11) 755 | -10/Materials | Discovered new exit (range 19) 860 | -10/Materials | Discovered new exit (range 11) 1424 | -10/Materials | Core integrity fell below 50% 1486 | -10/Materials | Discovered new exit (range 16) 1669 | -10/Materials | Repaired Hrd. Light Armor Plating 1696 | -10/Materials | Repaired Lgt. Assault Rifle 2089 | -10/Materials | Discovered new exit (range 11) 2113 | -10/Materials | Entered Mines 2245 | -10/Mines | Learned location of 1 exit from Materials 2365 | -10/Mines | Found a damaged Exp. Sensor Array with a note attached 2370 | -10/Mines | Found Prototype Device 2371 | -10/Mines | Identified Exp. Sensor Array 2464 | -10/Mines | Deemed a non-threat by the Exiles lab entrance 2464 | -10/Mines | Discovered new exit (range 5) 2474 | -10/Mines | Entered Exiles 2534 | -10/Exiles | Met 8R-AWN 2577 | -10/Exiles | Met EX-HEX 2681 | -10/Exiles | Met EX-BIN 2708 | -10/Exiles | Aligned with FarCom system 2710 | -10/Exiles | Given EX-Vault access code 2777 | -10/Exiles | Opened EX-Vault 2794 | -10/Exiles | Found Longsword +1 2802 | -10/Exiles | Found Potential Leg 2806 | -10/Exiles | Found Potential Leg 2847 | -10/Exiles | Warned to stay clear of 0b10 Research branches 2893 | -10/Exiles | Met EX-DEC 2973 | -10/Exiles | Discovered new exit (range 14) 2983 | -10/Exiles | Stole two prototypes: Potential Leg, Longsword +1 2983 | -10/Exiles | Entered Mines 2984 | -9/Mines | Assisted by bots powering up and referring to "LRC-V3" 3026 | -9/Mines | Learned location of Zion (-7) 3136 | -9/Mines | Received a Rocket Launcher from a helpful Derelict 3280 | -9/Mines | Build established: Assassin 3692 | -9/Mines | Discovered new exit (range 11) 3708 | -9/Mines | Discovered new exit (range 5) 3719 | -9/Mines | Identified exit to Materials 3737 | -9/Mines | Entered Materials 3737 | -8/Materials | Accompanied by 3 allies 3737 | -8/Materials | Evolved 4 slots: Utility x4 3738 | -8/Materials | Identified exit to Storage 3824 | -8/Materials | Lost 3 allies 3882 | -8/Materials | Destroyed 9 combat bots 3901 | -8/Materials | Entered Storage 3960 | -8/Storage | Repaired Mic. Nuclear Core 3987 | -8/Storage | Repaired Lgt. Assault Rifle 4009 | -8/Storage | Build established: Hacker-Mutant 4223 | -8/Storage | Repaired Mic. Nuclear Core 4266 | -8/Storage | Repaired Hvy. Assault Rifle 4472 | -8/Storage | Repaired Transmission Jammer 4578 | -8/Storage | Identified exit to Garrison 4578 | -8/Storage | Entered Garrison 4616 | -8/Garrison | Triggered checkpoint 4653 | -8/Garrison | Garrison Relay disabled 4882 | -8/Garrison | Triggered checkpoint 4888 | -8/Garrison | Core integrity fell below 50% 5020 | -8/Garrison | Garrison Relay disabled 5047 | -8/Garrison | Phase Generator disabled 5048 | -8/Garrison | Core integrity fell below 20% 5188 | -8/Garrison | Triggered checkpoint 5195 | -8/Garrison | Discovered new exit (range 11) 5213 | -8/Garrison | Identified exit to Factory 5229 | -8/Garrison | Learned Factory security intel 5356 | -8/Garrison | Triggered checkpoint 5386 | -8/Garrison | Triggered checkpoint 5397 | -8/Garrison | Destroyed by G-47 Trooper with Particle Gun Last Messages --------------- 05314_ Critical hit (Burn: +37). 05314_ Carbon-fiber Leg destroyed. 05319_ Jacked Y-45 Defender... 05321_ Y-45 Defender destroyed. 05331_ Triggered Stasis Trap. 05331_ A bubble of rippling energy engulfs the area. 05331_ Field strength at 85. 05333_ Field strength at 70. 05334_ Field strength at 55. 05335_ Field strength at 40. 05336_ Field strength at 25. 05337_ Field strength at 10. 05338_ Stasis field depleted. 05386_ Beams of light sweep through the air. An alarm sounds. 05387_ G-47 Trooper Aluminum Leg severed. 05389_ G-47 Trooper destroyed. 05391_ Destroyed Lgt. Nuclear Core. 05393_ Acquired 10 matter. 05395_ G-47 Trooper Aluminum Leg severed. 05396_ Potential Leg destroyed. Map ----- +----------------------------------------------------+ | ??????# ############?????????????????# ######## | | ??????# %[ #?????????????????#^ #??????? | | ??????# #?????????????????#%^#??????? | | ??????# ### ##### #?????????????????#= #??????? | | ??????# #?# #???# #???????########### #??????? | | ??????# #?# #???# #???????#==* " #??????? | | ??????# #?# #???# #???????#%######### #??????? | | ??????# #?# #???# #######?#%#???????# #??????? | | ??????# #?# #???# ## #?#*#???????# #??????? | | ??????#^ ###"#####" ## ###"##?###??# #??????? | | ??????# ###T#### #??????? | | ??????# ^^ #??????? | | ??????# ^ #??????? | | ??????####### #### ## ## ###########??????? | | ????????????#!#### ## ## ###??????????????? | | ????????????#*%[[ #??????????????? | | ????????????#### #??????????????? | | ???????????????# #??????????????? | | ???????????????# #??????????????? | | ???????????????### ## ## ###??????????????? | | ???????????####### ## ## #????????????????? | | ???????? ######???????????? | | ???????????????### #???????????? | | ??#??????????????# #### #???????????? | | ?????????????????## ##![= ## ##????????????????? | | ??????????????????# ##*=@g## #?????????????????? | | ??????????????????# #####g## #?????????????????? | | ??#?????#????????? #???? ## #?????????????????? | | ?????????????????## #????? # #?????????????????? | | ??????????????????# #?????##????????????????????# | | ??????????????????# #???????????????????????????? | | ?????????????#????? ???????????????#?????????#??? | | ???#??????????s??????????????????????????????????? | | ???????????s?????????????????????????????????????? | | ?????????????s????????????????+??????????????????? | | ????????????????????????????????????????????#####? | | ?????????????????????????????????????????????????? | | ?????????????????????????????????????????????????? | | ?????????????????????????????????????????????????? | | ??????#??????????????????????????????????????????? | | ?????????????????????????????????????????????????? | | ?????????????????????????????????????????????????? | | ?????????????????????????????????????????????????? | | ?????????????????????????????????????????????????? | | ?????????????????????????????????????????????????? | | ???+?????????????????????????????????????????????? | | ?????????????????????????????????????????????????? | | ?????????????????????????????????????????????????? | | ??#??????????????????????????????????????????????? | | ?????????????????????????????????????????????????? | +----------------------------------------------------+ Best States ------------- Heat Dissipation 31 Energy Generation 15 Energy Capacity 150 Matter Stores 300 Matter Capacity 300 Sight Range 16 Robot Scan Range 20 Terrain Scan Range 16 Terrain Scan Density 10 Jamming Range 12 Armor Coverage 150 Evasion (%) 57 Recoil Reduction 2 Offensive Hacking 40 Item Schematics ----------------- None Robot Schematics ------------------ None Fabricated ------------ Nothing Alien Tech Used ----------------- None Achievements -------------- None Challenges ------------ None Game ------ Seed HypervelocityArmoredInverter Manual? 0 Play Time 01:02:55 Cumulative 19.5 hours Start 2024.04.03 @ 01:29:12 End 2024.04.03 @ 02:30:19 Sessions 1 Manual Loads 0 Difficulty Rogue Special Mode None Game No. 38 Rogue 38 Adventurer 0 Explorer 0 Win Type - Total 0 Types 0/0/0/0/0/0/0/0/0 Lore% 16 Gallery% 20 Achievement% 19 Wizard Run 0 Options --------- Layout 0 ASCII 0 Keyboard 0 Movement Mouse Keybinds 0 Fullscreen 1 Font 24/Smallcaps Map View 76x50 Zoom Use 0% Tactical HUD 1 Map Filters NONE Filters NONE Steam 1 RUN: 97403da2-e442-4b87-8786-06a16a50c256